[Event "Late-Titled-Tuesday-Blitz-January-30-2024"]
[Site "Chess.com"]
[Date "2024.01.30"]
[Round "3"]
[White "manitodeplomo"]
[Black "Hrant_ChessMood"]
[Result "0-1"]
[WhiteElo "2686"]
[BlackElo "2907"]
[TimeControl "180+1"]
[EndTime "14:29:23 PST"]
[Termination "Hrant_ChessMood won on time"]

1. d4 {[%clk 0:03:00.9]} 1... d5 {[%clk 0:02:59.3]} 2. c4 {[%clk 0:03:01.2]}
2... e6 {[%clk 0:02:59.5]} 3. Nf3 {[%clk 0:03:01.1]} 3... Nf6 {[%clk 0:02:59.2]}
4. Nc3 {[%clk 0:03:00.7]} 4... Be7 {[%clk 0:02:58.9]} 5. Bg5 {[%clk 0:02:55.1]}
5... Nbd7 {[%clk 0:02:58.5]} 6. c5 {[%clk 0:02:48.6]} 6... Ne4 {[%clk
0:02:52.7]} 7. Bxe7 {[%clk 0:02:42.4]} 7... Qxe7 {[%clk 0:02:52.4]} 8. e3 {[%clk
0:02:41.9]} 8... Nxc3 {[%clk 0:02:48.5]} 9. bxc3 {[%clk 0:02:41.3]} 9... e5
{[%clk 0:02:49.4]} 10. Be2 {[%clk 0:02:35.9]} 10... O-O {[%clk 0:02:44.2]} 11.
O-O {[%clk 0:02:35.8]} 11... c6 {[%clk 0:02:34.4]} 12. c4 {[%clk 0:02:18.2]}
12... e4 {[%clk 0:02:22.8]} 13. Nd2 {[%clk 0:02:17.2]} 13... Nf6 {[%clk
0:02:23.4]} 14. a4 {[%clk 0:02:14.6]} 14... Be6 {[%clk 0:02:14.6]} 15. a5 {[%clk
0:02:14.2]} 15... dxc4 {[%clk 0:01:55]} 16. Nxc4 {[%clk 0:02:15.1]} 16... Bxc4
{[%clk 0:01:49.8]} 17. Bxc4 {[%clk 0:02:14.1]} 17... Rab8 {[%clk 0:01:50.7]} 18.
Qb3 {[%clk 0:02:04.8]} 18... g6 {[%clk 0:01:46.3]} 19. Rfb1 {[%clk 0:02:03.6]}
19... Kg7 {[%clk 0:01:46.1]} 20. Qc3 {[%clk 0:01:56]} 20... Rfd8 {[%clk
0:01:39.4]} 21. Ra2 {[%clk 0:01:55.2]} 21... Qc7 {[%clk 0:01:25.1]} 22. Rab2
{[%clk 0:01:47.6]} 22... Nd5 {[%clk 0:01:01.2]} 23. Bxd5 {[%clk 0:01:40.4]}
23... Rxd5 {[%clk 0:01:02.1]} 24. Rb3 {[%clk 0:01:37.1]} 24... h5 {[%clk
0:00:58.5]} 25. h3 {[%clk 0:01:32.1]} 25... h4 {[%clk 0:00:54.9]} 26. Qb2 {[%clk
0:01:18.9]} 26... Qxa5 {[%clk 0:00:53.4]} 27. Ra3 {[%clk 0:01:14.4]} 27... Qd8
{[%clk 0:00:42.7]} 28. Rxa7 {[%clk 0:01:13.4]} 28... b5 {[%clk 0:00:35.5]} 29.
cxb6 {[%clk 0:01:10.8]} 29... Rb5 {[%clk 0:00:35.5]} 30. Qa1 {[%clk 0:01:09.2]}
30... R8xb6 {[%clk 0:00:21]} 31. Rxb5 {[%clk 0:01:01.6]} 31... cxb5 {[%clk
0:00:20.8]} 32. Qa2 {[%clk 0:00:37.9]} 32... Qf6 {[%clk 0:00:18.2]} 33. Qd5
{[%clk 0:00:37.6]} 33... b4 {[%clk 0:00:18.1]} 34. Qxe4 {[%clk 0:00:33.3]} 34...
b3 {[%clk 0:00:18.4]} 35. Ra1 {[%clk 0:00:32]} 35... Qd6 {[%clk 0:00:16.7]} 36.
Rb1 {[%clk 0:00:27.9]} 36... b2 {[%clk 0:00:13.4]} 37. Qe5+ {[%clk 0:00:17.7]}
37... Qxe5 {[%clk 0:00:10.2]} 38. dxe5 {[%clk 0:00:18.6]} 38... g5 {[%clk
0:00:10.4]} 39. Kf1 {[%clk 0:00:17.8]} 39... Kg6 {[%clk 0:00:10.8]} 40. e4
{[%clk 0:00:16.7]} 40... g4 {[%clk 0:00:06.8]} 41. Ke2 {[%clk 0:00:13]} 41...
gxh3 {[%clk 0:00:05.5]} 42. gxh3 {[%clk 0:00:12.7]} 42... Kg5 {[%clk 0:00:06.3]}
43. Ke3 {[%clk 0:00:07.3]} 43... Rb3+ {[%clk 0:00:06.2]} 44. Kd4 {[%clk
0:00:07.6]} 44... Kf4 {[%clk 0:00:07.1]} 45. Kc4 {[%clk 0:00:07]} 45... Rb8
{[%clk 0:00:07.2]} 46. Kc3 {[%clk 0:00:03.7]} 46... Kxe5 {[%clk 0:00:07.3]} 0-1

[Event "Late-Titled-Tuesday-Blitz-January-30-2024"]
[Site "Chess.com"]
[Date "2024.01.30"]
[Round "3"]
[White "Bala-Afiada"]
[Black "IngOscarArdila"]
[Result "1-0"]
[WhiteElo "2034"]
[BlackElo "2326"]
[TimeControl "180+1"]
[EndTime "14:29:25 PST"]
[Termination "Bala-Afiada won on time"]

1. d4 {[%clk 0:02:56.2]} 1... Nf6 {[%clk 0:02:59.4]} 2. c4 {[%clk 0:02:54.4]}
2... e6 {[%clk 0:02:59.1]} 3. g3 {[%clk 0:02:53]} 3... d5 {[%clk 0:02:59.1]} 4.
Nf3 {[%clk 0:02:52.9]} 4... Be7 {[%clk 0:02:57.3]} 5. Bg2 {[%clk 0:02:53]} 5...
O-O {[%clk 0:02:57]} 6. O-O {[%clk 0:02:53.2]} 6... Nbd7 {[%clk 0:02:55.1]} 7.
Nc3 {[%clk 0:02:50.7]} 7... dxc4 {[%clk 0:02:54.4]} 8. e4 {[%clk 0:02:48.6]}
8... Nb6 {[%clk 0:02:53.1]} 9. e5 {[%clk 0:02:47.6]} 9... Nfd5 {[%clk
0:02:52.7]} 10. Ne4 {[%clk 0:02:46.7]} 10... Bd7 {[%clk 0:02:10.6]} 11. Bg5
{[%clk 0:02:45.2]} 11... h6 {[%clk 0:02:08.8]} 12. Bxe7 {[%clk 0:02:44.8]} 12...
Qxe7 {[%clk 0:02:08.8]} 13. a3 {[%clk 0:02:44.7]} 13... a5 {[%clk 0:02:00.9]}
14. Qc2 {[%clk 0:02:40.6]} 14... Ba4 {[%clk 0:01:57.3]} 15. Qe2 {[%clk
0:02:32.7]} 15... Bb3 {[%clk 0:01:46.7]} 16. Nc5 {[%clk 0:02:26.3]} 16... Rab8
{[%clk 0:01:41.7]} 17. Nxb3 {[%clk 0:02:21.7]} 17... cxb3 {[%clk 0:01:40.7]} 18.
Rac1 {[%clk 0:01:29]} 18... Rfc8 {[%clk 0:01:33.3]} 19. Rc5 {[%clk 0:01:27.2]}
19... a4 {[%clk 0:01:29.8]} 20. Rfc1 {[%clk 0:01:25.4]} 20... c6 {[%clk
0:01:29.5]} 21. Nd2 {[%clk 0:01:19.2]} 21... Nd7 {[%clk 0:01:13.1]} 22. Ne4
{[%clk 0:01:02.8]} 22... Nxc5 {[%clk 0:01:11]} 23. Rxc5 {[%clk 0:01:01.7]} 23...
b6 {[%clk 0:01:00.3]} 24. Rc4 {[%clk 0:00:58.5]} 24... c5 {[%clk 0:00:54]} 25.
Nd6 {[%clk 0:00:52.5]} 25... Rc7 {[%clk 0:00:51.9]} 26. Rxa4 {[%clk 0:00:48.4]}
26... cxd4 {[%clk 0:00:48.5]} 27. Bxd5 {[%clk 0:00:33.1]} 27... d3 {[%clk
0:00:35.4]} 28. Qxd3 {[%clk 0:00:28.6]} 28... exd5 {[%clk 0:00:35.6]} 29. Qxd5
{[%clk 0:00:28.7]} 29... Rc5 {[%clk 0:00:35.1]} 30. Qf3 {[%clk 0:00:16.7]} 30...
Rxe5 {[%clk 0:00:33.6]} 31. Nc4 {[%clk 0:00:13.6]} 31... Re1+ {[%clk 0:00:30.7]}
32. Kg2 {[%clk 0:00:14.1]} 32... Qe4 {[%clk 0:00:26.5]} 33. Qxe4 {[%clk
0:00:11.8]} 33... Rxe4 {[%clk 0:00:26.1]} 34. Nxb6 {[%clk 0:00:09.8]} 34... Rxa4
{[%clk 0:00:14.4]} 35. Nxa4 {[%clk 0:00:10.7]} 35... Kf8 {[%clk 0:00:14.8]} 36.
Nc3 {[%clk 0:00:10.8]} 36... Ke7 {[%clk 0:00:14.3]} 37. f4 {[%clk 0:00:11.7]}
37... Ke6 {[%clk 0:00:14.2]} 38. Kf3 {[%clk 0:00:12.6]} 38... Rd8 {[%clk
0:00:13.2]} 39. Ke4 {[%clk 0:00:13.2]} 39... Rd2 {[%clk 0:00:13.1]} 40. Na4
{[%clk 0:00:13.5]} 40... Rxh2 {[%clk 0:00:12.6]} 41. Nc5+ {[%clk 0:00:14.1]}
41... Kd6 {[%clk 0:00:12.4]} 42. Nxb3 {[%clk 0:00:14.8]} 42... Kc6 {[%clk
0:00:12.1]} 43. Nd4+ {[%clk 0:00:15.5]} 43... Kb6 {[%clk 0:00:12.1]} 44. b4
{[%clk 0:00:16]} 44... Ra2 {[%clk 0:00:11.5]} 45. Nf5 {[%clk 0:00:12.6]} 45...
g6 {[%clk 0:00:11.5]} 46. Nxh6 {[%clk 0:00:12.8]} 46... f5+ {[%clk 0:00:11.4]}
47. Ke5 {[%clk 0:00:11.7]} 47... Rxa3 {[%clk 0:00:11.9]} 48. Kf6 {[%clk
0:00:12.2]} 48... Rxg3 {[%clk 0:00:11.7]} 49. Nf7 {[%clk 0:00:10.7]} 49... Kb5
{[%clk 0:00:11.7]} 50. Ne5 {[%clk 0:00:11.1]} 50... Kxb4 {[%clk 0:00:11.7]} 51.
Nxg6 {[%clk 0:00:11]} 51... Kc5 {[%clk 0:00:11.9]} 52. Ne7 {[%clk 0:00:11.4]}
52... Kd6 {[%clk 0:00:11.8]} 53. Nxf5+ {[%clk 0:00:11]} 53... Kd7 {[%clk
0:00:12.5]} 54. Nxg3 {[%clk 0:00:11.7]} 54... Ke8 {[%clk 0:00:12.4]} 55. Kg7
{[%clk 0:00:12.3]} 55... Ke7 {[%clk 0:00:12.7]} 56. f5 {[%clk 0:00:12.4]} 1-0

[Event "Late-Titled-Tuesday-Blitz-January-30-2024"]
[Site "Chess.com"]
[Date "2024.01.30"]
[Round "3"]
[White "lluiss"]
[Black "winniethepooh04"]
[Result "1/2-1/2"]
[WhiteElo "2190"]
[BlackElo "2541"]
[TimeControl "180+1"]
[EndTime "14:29:29 PST"]
[Termination "Game drawn by repetition"]

1. e4 {[%clk 0:02:55.4]} 1... e6 {[%clk 0:03:00.9]} 2. d4 {[%clk 0:02:54.4]}
2... d5 {[%clk 0:03:01.1]} 3. e5 {[%clk 0:02:54.4]} 3... c5 {[%clk 0:03:00.9]}
4. Nf3 {[%clk 0:02:54.1]} 4... Nc6 {[%clk 0:03:01.2]} 5. dxc5 {[%clk 0:02:53.8]}
5... Nge7 {[%clk 0:02:53.9]} 6. Bd3 {[%clk 0:02:50.4]} 6... Ng6 {[%clk
0:02:53.3]} 7. Qe2 {[%clk 0:02:50.1]} 7... Bxc5 {[%clk 0:02:52.5]} 8. O-O {[%clk
0:02:50]} 8... O-O {[%clk 0:02:51.9]} 9. c3 {[%clk 0:02:46.6]} 9... Bd7 {[%clk
0:02:50.9]} 10. Bg5 {[%clk 0:02:39.8]} 10... Be7 {[%clk 0:02:50.5]} 11. Bxe7
{[%clk 0:02:38.6]} 11... Qxe7 {[%clk 0:02:51.4]} 12. Nbd2 {[%clk 0:02:35.9]}
12... Rac8 {[%clk 0:02:50.7]} 13. Rfe1 {[%clk 0:02:34.1]} 13... Nf4 {[%clk
0:02:45.4]} 14. Qf1 {[%clk 0:02:32.7]} 14... Nxd3 {[%clk 0:02:41.3]} 15. Qxd3
{[%clk 0:02:31.7]} 15... Na5 {[%clk 0:02:39.7]} 16. Nd4 {[%clk 0:02:28.1]} 16...
Nc4 {[%clk 0:02:38]} 17. Nxc4 {[%clk 0:02:28]} 17... Rxc4 {[%clk 0:02:38.1]} 18.
Re3 {[%clk 0:02:23.4]} 18... Qg5 {[%clk 0:02:33.1]} 19. Rae1 {[%clk 0:02:19.9]}
19... b5 {[%clk 0:02:27.6]} 20. Rg3 {[%clk 0:02:17.7]} 20... Qh5 {[%clk
0:02:22.3]} 21. a3 {[%clk 0:01:29.2]} 21... a5 {[%clk 0:02:20.9]} 22. Rh3 {[%clk
0:01:23.7]} 22... Qg6 {[%clk 0:02:20]} 23. Qxg6 {[%clk 0:01:23.6]} 23... fxg6
{[%clk 0:02:20.1]} 24. Nc2 {[%clk 0:01:17.2]} 24... Rb8 {[%clk 0:02:02.1]} 25.
Rhe3 {[%clk 0:01:14.6]} 25... Rc7 {[%clk 0:01:49.8]} 26. f3 {[%clk 0:01:12.8]}
26... b4 {[%clk 0:01:47.6]} 27. axb4 {[%clk 0:01:10.9]} 27... Ba4 {[%clk
0:01:48.1]} 28. Nd4 {[%clk 0:01:06.4]} 28... Kf7 {[%clk 0:01:38.6]} 29. bxa5
{[%clk 0:00:57.1]} 29... Rxb2 {[%clk 0:01:37.6]} 30. Ra1 {[%clk 0:00:57.6]}
30... Bd7 {[%clk 0:01:36.1]} 31. Re2 {[%clk 0:00:47.3]} 31... Rb8 {[%clk
0:01:32]} 32. a6 {[%clk 0:00:36.2]} 32... Rxc3 {[%clk 0:01:25.8]} 33. a7 {[%clk
0:00:36.1]} 33... Ra8 {[%clk 0:01:26.3]} 34. Rb2 {[%clk 0:00:35.9]} 34... Rc7
{[%clk 0:01:26.6]} 35. Rba2 {[%clk 0:00:28.5]} 35... Ke7 {[%clk 0:01:25.4]} 36.
f4 {[%clk 0:00:28.1]} 36... Rc4 {[%clk 0:01:18.6]} 37. Rb2 {[%clk 0:00:25.7]}
37... Rc7 {[%clk 0:01:09.1]} 38. Rba2 {[%clk 0:00:24.1]} 38... Rc4 {[%clk
0:01:09.3]} 39. Nb3 {[%clk 0:00:22.2]} 39... Rc7 {[%clk 0:01:03.8]} 40. Kf2
{[%clk 0:00:21.3]} 40... Bb5 {[%clk 0:01:02.4]} 41. Nd4 {[%clk 0:00:19.6]} 41...
Bc4 {[%clk 0:01:01.3]} 42. Ra5 {[%clk 0:00:19.3]} 42... Kd7 {[%clk 0:00:59.7]}
43. Ke3 {[%clk 0:00:19.1]} 43... Rb7 {[%clk 0:00:59]} 44. R1a3 {[%clk
0:00:16.9]} 44... Rb2 {[%clk 0:00:54.8]} 45. Nf3 {[%clk 0:00:09]} 45... Rb7
{[%clk 0:00:51.5]} 46. Nd2 {[%clk 0:00:08.8]} 46... Bb5 {[%clk 0:00:50.8]} 47.
Rb3 {[%clk 0:00:08.1]} 47... Kc6 {[%clk 0:00:42.1]} 48. Rba3 {[%clk 0:00:07.7]}
48... Kb6 {[%clk 0:00:41]} 49. Nf3 {[%clk 0:00:06.1]} 49... Rbxa7 {[%clk
0:00:38.7]} 50. Rxa7 {[%clk 0:00:06.3]} 50... Rxa7 {[%clk 0:00:38.8]} 51. Rxa7
{[%clk 0:00:06.7]} 51... Kxa7 {[%clk 0:00:39.7]} 52. Nd4 {[%clk 0:00:05.5]}
52... Bd7 {[%clk 0:00:39.3]} 53. g4 {[%clk 0:00:05.8]} 53... Kb6 {[%clk
0:00:39.4]} 54. Kd2 {[%clk 0:00:05.5]} 54... Kc5 {[%clk 0:00:39.7]} 55. Kc3
{[%clk 0:00:05.8]} 55... Bc8 {[%clk 0:00:39.1]} 56. g5 {[%clk 0:00:06]} 56...
Bd7 {[%clk 0:00:39.1]} 57. h4 {[%clk 0:00:06.3]} 57... Bc8 {[%clk 0:00:38.7]}
58. Ne2 {[%clk 0:00:06.3]} 58... Bd7 {[%clk 0:00:38.6]} 59. Nd4 {[%clk
0:00:06.5]} 59... Bc8 {[%clk 0:00:36.7]} 60. Nb3+ {[%clk 0:00:06.7]} 60... Kb5
{[%clk 0:00:36.7]} 61. Kd4 {[%clk 0:00:07]} 61... Kb4 {[%clk 0:00:35]} 62. Nc5
{[%clk 0:00:06.6]} 62... Kb5 {[%clk 0:00:33.8]} 63. Nd3 {[%clk 0:00:06.5]} 63...
Bd7 {[%clk 0:00:33.3]} 64. Nc5 {[%clk 0:00:06.3]} 64... Bc8 {[%clk 0:00:33.6]}
65. Nd3 {[%clk 0:00:06.2]} 65... Kc6 {[%clk 0:00:34.1]} 66. Nb4+ {[%clk
0:00:05.8]} 66... Kb6 {[%clk 0:00:32.8]} 67. Nd3 {[%clk 0:00:05.6]} 67... Kc6
{[%clk 0:00:32.2]} 68. Nc5 {[%clk 0:00:05.6]} 68... Kb5 {[%clk 0:00:31.3]}
1/2-1/2

[Event "Late-Titled-Tuesday-Blitz-January-30-2024"]
[Site "Chess.com"]
[Date "2024.01.30"]
[Round "3"]
[White "pr1105"]
[Black "Byniolus"]
[Result "0-1"]
[WhiteElo "2429"]
[BlackElo "2852"]
[TimeControl "180+1"]
[EndTime "14:29:30 PST"]
[Termination "Byniolus won by resignation"]

1. e4 {[%clk 0:03:00.9]} 1... d6 {[%clk 0:02:59.7]} 2. d4 {[%clk 0:03:01]} 2...
Nf6 {[%clk 0:03:00.2]} 3. Nc3 {[%clk 0:03:01.6]} 3... c6 {[%clk 0:03:00.7]} 4.
f4 {[%clk 0:02:59.3]} 4... Qb6 {[%clk 0:03:00.9]} 5. Nf3 {[%clk 0:02:51.6]} 5...
Bg4 {[%clk 0:03:00.7]} 6. a3 {[%clk 0:02:20.3]} 6... e6 {[%clk 0:02:52.5]} 7.
Be3 {[%clk 0:02:16.3]} 7... d5 {[%clk 0:02:51.7]} 8. e5 {[%clk 0:02:00.6]} 8...
Bxf3 {[%clk 0:02:51.5]} 9. gxf3 {[%clk 0:01:44.8]} 9... Nh5 {[%clk 0:02:50.5]}
10. Qd2 {[%clk 0:01:35.3]} 10... g6 {[%clk 0:02:36.2]} 11. O-O-O {[%clk
0:01:32.7]} 11... Nd7 {[%clk 0:02:34.2]} 12. Na4 {[%clk 0:01:27.6]} 12... Qc7
{[%clk 0:02:28.7]} 13. Kb1 {[%clk 0:01:27.9]} 13... Be7 {[%clk 0:02:27.2]} 14.
Bd3 {[%clk 0:01:24.6]} 14... O-O-O {[%clk 0:02:14.8]} 15. Nc5 {[%clk 0:01:17.1]}
15... Nxc5 {[%clk 0:02:06.7]} 16. dxc5 {[%clk 0:01:17.8]} 16... d4 {[%clk
0:02:07.6]} 17. Bf2 {[%clk 0:01:17.6]} 17... Bxc5 {[%clk 0:02:07.1]} 18. Be4
{[%clk 0:01:15]} 18... Bb6 {[%clk 0:01:25.7]} 19. Qc1 {[%clk 0:01:05.8]} 19...
Kb8 {[%clk 0:01:24.2]} 20. Rd3 {[%clk 0:00:44.1]} 20... c5 {[%clk 0:01:15]} 21.
c4 {[%clk 0:00:42.3]} 21... f5 {[%clk 0:00:59.3]} 22. exf6 {[%clk 0:00:40.2]}
22... Rdf8 {[%clk 0:00:58.1]} 23. Bg3 {[%clk 0:00:36.5]} 23... Rxf6 {[%clk
0:00:58]} 24. Rb3 {[%clk 0:00:24.2]} 24... Ka8 {[%clk 0:00:26.9]} 25. a4 {[%clk
0:00:23.9]} 25... Rb8 {[%clk 0:00:27.1]} 26. Rb5 {[%clk 0:00:20.6]} 26... a6
{[%clk 0:00:22.8]} 27. Rb3 {[%clk 0:00:15.8]} 27... Ba5 {[%clk 0:00:23.1]} 28.
Ka2 {[%clk 0:00:12.4]} 28... Bb4 {[%clk 0:00:21.8]} 29. f5 {[%clk 0:00:09.1]}
29... Nxg3 {[%clk 0:00:21.4]} 30. hxg3 {[%clk 0:00:10]} 30... gxf5 {[%clk
0:00:18.5]} 31. Bd3 {[%clk 0:00:09.6]} 31... Qxg3 {[%clk 0:00:09.3]} 32. Rxh7
{[%clk 0:00:09.3]} 32... Qd6 {[%clk 0:00:07.1]} 33. Rxb4 {[%clk 0:00:07.7]}
33... cxb4 {[%clk 0:00:06.7]} 34. c5 {[%clk 0:00:08.6]} 34... Qc6 {[%clk
0:00:05.9]} 35. b3 {[%clk 0:00:08.2]} 35... Rg8 {[%clk 0:00:05.4]} 36. Qc4
{[%clk 0:00:07.5]} 36... Rd8 {[%clk 0:00:04.1]} 37. Qxb4 {[%clk 0:00:07.1]}
37... Rb8 {[%clk 0:00:04]} 38. Bc4 {[%clk 0:00:05.7]} 38... e5 {[%clk
0:00:03.5]} 39. Bd3 {[%clk 0:00:05.5]} 39... e4 {[%clk 0:00:03.5]} 40. fxe4
{[%clk 0:00:06.4]} 40... fxe4 {[%clk 0:00:04.4]} 41. Bc4 {[%clk 0:00:07]} 41...
Rf2+ {[%clk 0:00:04.6]} 42. Ka3 {[%clk 0:00:07.3]} 42... d3 {[%clk 0:00:04.8]}
43. Bb5 {[%clk 0:00:07.5]} 43... Qf6 {[%clk 0:00:02.3]} 44. Qc4 {[%clk
0:00:05.2]} 44... Qb2+ {[%clk 0:00:01.9]} 45. Kb4 {[%clk 0:00:05.8]} 45... Qd2+
{[%clk 0:00:02.8]} 46. Ka3 {[%clk 0:00:06.1]} 46... Rf1 {[%clk 0:00:02.5]} 47.
Bxa6 {[%clk 0:00:06.2]} 47... Qc1+ {[%clk 0:00:03.2]} 48. Kb4 {[%clk 0:00:06.4]}
48... Qxc4+ {[%clk 0:00:03.1]} 49. Bxc4 {[%clk 0:00:05.8]} 49... d2 {[%clk
0:00:03.6]} 50. Bxf1 {[%clk 0:00:05.2]} 50... d1=Q {[%clk 0:00:04.2]} 51. Bc4
{[%clk 0:00:05.5]} 51... Qd2+ {[%clk 0:00:04.3]} 52. Kb5 {[%clk 0:00:05.9]}
52... Qd8 {[%clk 0:00:03.3]} 53. Rf7 {[%clk 0:00:05.2]} 53... e3 {[%clk
0:00:03.2]} 54. Bd5 {[%clk 0:00:05.1]} 54... Qxd5 {[%clk 0:00:03]} 55. Rf4
{[%clk 0:00:04.5]} 55... e2 {[%clk 0:00:03.1]} 56. a5 {[%clk 0:00:04.2]} 56...
Qc6+ {[%clk 0:00:03.4]} 57. Kc4 {[%clk 0:00:04]} 57... e1=Q {[%clk 0:00:04.3]}
0-1

[Event "Late-Titled-Tuesday-Blitz-January-30-2024"]
[Site "Chess.com"]
[Date "2024.01.30"]
[Round "3"]
[White "familijatop71"]
[Black "Dzidzik2203"]
[Result "1-0"]
[WhiteElo "2234"]
[BlackElo "2396"]
[TimeControl "180+1"]
[EndTime "14:29:32 PST"]
[Termination "familijatop71 won by resignation"]

1. e4 {[%clk 0:03:00.9]} 1... c5 {[%clk 0:03:00.2]} 2. c3 {[%clk 0:03:00.9]}
2... Nf6 {[%clk 0:02:58.8]} 3. e5 {[%clk 0:03:01.2]} 3... Nd5 {[%clk 0:02:59.4]}
4. Nf3 {[%clk 0:03:01.8]} 4... Nc6 {[%clk 0:02:55.1]} 5. d4 {[%clk 0:03:02.4]}
5... cxd4 {[%clk 0:02:55.1]} 6. Bc4 {[%clk 0:03:01.6]} 6... Nb6 {[%clk
0:02:54.4]} 7. Bb3 {[%clk 0:03:01.8]} 7... d5 {[%clk 0:02:52.4]} 8. exd6 {[%clk
0:03:01.9]} 8... Qxd6 {[%clk 0:02:50.5]} 9. O-O {[%clk 0:03:02.2]} 9... Be6
{[%clk 0:02:50.4]} 10. Na3 {[%clk 0:03:01]} 10... Bxb3 {[%clk 0:02:42.6]} 11.
Qxb3 {[%clk 0:03:01.9]} 11... Qd5 {[%clk 0:02:37.8]} 12. Nb5 {[%clk 0:02:59.7]}
12... O-O-O {[%clk 0:02:35.5]} 13. Nxa7+ {[%clk 0:02:45.2]} 13... Nxa7 {[%clk
0:02:13.8]} 14. Qxb6 {[%clk 0:02:44.6]} 14... Nc6 {[%clk 0:02:12.7]} 15. Nxd4
{[%clk 0:02:10.4]} 15... Nxd4 {[%clk 0:01:51]} 16. cxd4 {[%clk 0:02:09.6]} 16...
Qxd4 {[%clk 0:01:51.7]} 17. Qa5 {[%clk 0:02:01.2]} 17... Qd5 {[%clk 0:01:40.8]}
18. Qa8+ {[%clk 0:01:48.6]} 18... Kc7 {[%clk 0:01:39.9]} 19. Bf4+ {[%clk
0:01:45.5]} 19... e5 {[%clk 0:01:39]} 20. Rac1+ {[%clk 0:01:45.5]} 20... Kb6
{[%clk 0:01:23.2]} 21. Be3+ {[%clk 0:01:37.8]} 21... Bc5 {[%clk 0:01:00.2]} 22.
Bxc5+ {[%clk 0:01:35]} 22... Qxc5 {[%clk 0:00:57.8]} 23. Qxb7+ {[%clk
0:01:06.7]} 23... Kxb7 {[%clk 0:00:57.1]} 24. Rxc5 {[%clk 0:01:07.3]} 24... f6
{[%clk 0:00:57.6]} 25. Rfc1 {[%clk 0:01:05.6]} 25... Rd7 {[%clk 0:00:57.8]} 26.
b4 {[%clk 0:01:01.5]} 26... Rhd8 {[%clk 0:00:57.4]} 27. g3 {[%clk 0:00:58.5]}
27... Ra8 {[%clk 0:00:53]} 28. R1c2 {[%clk 0:00:54.4]} 28... Ra3 {[%clk
0:00:51.8]} 29. Rb5+ {[%clk 0:00:50.4]} 29... Ka6 {[%clk 0:00:50.4]} 30. Rb8
{[%clk 0:00:47.3]} 30... Ka7 {[%clk 0:00:40.6]} 31. Rcc8 {[%clk 0:00:45.4]}
31... Rxa2 {[%clk 0:00:25.2]} 32. b5 {[%clk 0:00:36.1]} 32... Rb2 {[%clk
0:00:14.4]} 33. Ra8+ {[%clk 0:00:15.9]} 33... Kb6 {[%clk 0:00:14.5]} 34. Rab8+
{[%clk 0:00:14.7]} 34... Rb7 {[%clk 0:00:13.5]} 35. Rxb7+ {[%clk 0:00:11.4]}
35... Kxb7 {[%clk 0:00:13.8]} 36. Rg8 {[%clk 0:00:10.9]} 36... g5 {[%clk
0:00:12.9]} 37. Rg7+ {[%clk 0:00:11.3]} 37... Kb6 {[%clk 0:00:13.5]} 38. Rxh7
{[%clk 0:00:11.5]} 38... Kxb5 {[%clk 0:00:13.3]} 39. Rf7 {[%clk 0:00:11.8]}
39... Kc4 {[%clk 0:00:13.7]} 40. Rxf6 {[%clk 0:00:12.2]} 40... Kd3 {[%clk
0:00:14]} 41. Rf5 {[%clk 0:00:11.4]} 41... e4 {[%clk 0:00:12.3]} 42. Rxg5 {[%clk
0:00:11.7]} 42... e3 {[%clk 0:00:12]} 43. fxe3 {[%clk 0:00:11.7]} 43... Kxe3
{[%clk 0:00:12.9]} 44. Rf5 {[%clk 0:00:11.4]} 44... Ke4 {[%clk 0:00:12.2]} 45.
Rf2 {[%clk 0:00:10.7]} 45... Rb1+ {[%clk 0:00:11.2]} 46. Kg2 {[%clk 0:00:11.1]}
46... Rb3 {[%clk 0:00:11.6]} 47. h4 {[%clk 0:00:10.9]} 47... Ra3 {[%clk
0:00:10.6]} 48. g4 {[%clk 0:00:10.7]} 48... Ke5 {[%clk 0:00:09.8]} 49. Rf3
{[%clk 0:00:10.1]} 49... Ra2+ {[%clk 0:00:09.9]} 50. Kg3 {[%clk 0:00:10.3]}
50... Ra1 {[%clk 0:00:10.8]} 51. h5 {[%clk 0:00:10.6]} 51... Rg1+ {[%clk
0:00:11.1]} 52. Kh4 {[%clk 0:00:11.1]} 52... Ke4 {[%clk 0:00:11.2]} 53. Rf8
{[%clk 0:00:10.4]} 53... Ke5 {[%clk 0:00:10.6]} 54. Kg5 {[%clk 0:00:10.7]} 54...
Ke6 {[%clk 0:00:11]} 55. h6 {[%clk 0:00:11.2]} 55... Rh1 {[%clk 0:00:10.8]} 56.
Kg6 {[%clk 0:00:10.5]} 56... Ke7 {[%clk 0:00:11.2]} 57. Rf2 {[%clk 0:00:10.2]}
57... Rh4 {[%clk 0:00:11.1]} 58. g5 {[%clk 0:00:09.8]} 58... Ke8 {[%clk
0:00:09.4]} 59. h7 {[%clk 0:00:09.4]} 59... Ke7 {[%clk 0:00:09.5]} 60. Kg7
{[%clk 0:00:09.3]} 60... Rh5 {[%clk 0:00:09.5]} 61. g6 {[%clk 0:00:09.6]} 61...
Rh6 {[%clk 0:00:09.6]} 62. h8=Q {[%clk 0:00:09]} 1-0